Cogmind - Beta 14 @@@ ROGUE MODE // 2025.03.18 @ 19:14:54 Player: potator Result: Destroyed by X-57 Shotgunner with High-powered Shotgun Performance ------------- Evolutions (2) 1000 Regions Visited (3) 600 Robots Destroyed (39) 195 Value Destroyed (1324) 1324 Prototype IDs (2) 40 Alien Tech Used (0) 0 Bonus (0) 0 TOTAL SCORE: 3159 Bonus ------- None Cogmind --------- Core Integrity 0/550 Matter 285/300 Energy 80/100 System Corruption 2% Temperature Cool (0) Movement Core (250) Ox4 Location -8/Materials Parts ------- > --- POWER (1) -------- (None) > --- PROPULSION (2) --- (None) > --- UTILITY (5) ------ Medium Storage Unit > --- WEAPON (3) ------- Shock Rifle > --- INVENTORY (10) --- Improved Heat Sink Advanced Heat Sink Machine Analyzer Sensor Array Particle Charger Hacking Suite Shock Rifle Datajack Peak State ------------ > --- POWER ------------ Subdweller Power Source > --- PROPULSION ------- Light Treads Hover Unit > --- UTILITY ---------- Small Storage Unit Structural Scanner Subdweller Optics Improved Sensor Array Power Bank > --- WEAPON ----------- Autogun Improved Assault Rifle Improved Assault Rifle > --- INVENTORY -------- Machine Analyzer Sensor Array Particle Charger Hacking Suite Ion Cannon Ion Cannon Shock Bomb Launcher Datajack [Rating: 30] Favorites ----------- Power Subdweller Power Source Engine Subdweller Power Source Power Core Light Nuclear Core Propulsion Light Treads Treads Light Treads Leg Aluminum Leg Hover Unit Hover Unit Utility Small Storage Unit Device Power Bank Storage Small Storage Unit Processor Signal Interpreter Weapon Improved Assault Rifle Energy Gun EM Pulse Gun Energy Cannon Ion Cannon Ballistic Gun Improved Assault Rifle Launcher Shock Bomb Launcher Build | -11 -10 -10 -8 ------- Run | Yrd Mat Sub Mat Slots Evolved 4 | . . . 4 Power . | . . . . Propulsion . | . . . . Utility 3 | . . . 3 Weapon 1 | . . . 1 Parts Attached 38 | 6 9 6 17 Power 9 | 1 2 4 2 Engine 7 | 1 2 4 . Core 2 | . . . 2 Reactor . | . . . . Propulsion 5 | 2 . . 3 Treads 3 | 2 . . 1 Leg 1 | . . . 1 Wheel . | . . . . Hover 1 | . . . 1 Flight . | . . . . Utility 10 | 1 3 1 5 Device 7 | . 2 1 4 Storage 2 | 1 . . 1 Processor 1 | . 1 . . Hackware . | . . . . Protection . | . . . . Artifact . | . . . . Weapon 14 | 2 4 1 7 Energy Gun 4 | 1 . . 3 Energy Cannon 2 | . . . 2 Ballistic Gun 7 | 1 4 1 1 Ballistic Cannon . | . . . . Launcher 1 | . . . 1 Special Weapon . | . . . . Impact Weapon . | . . . . Slashing Weapon . | . . . . Piercing Weapon . | . . . . Special Melee Weapon . | . . . . Unidentified Prototypes 2 | . 1 1 . Parts Lost 21 | . 1 2 18 Power 3 | . . . 3 Propulsion 5 | . . 1 4 Utility 4 | . 1 . 3 Weapon 9 | . . 1 8 Highest Loss Streak 9 | . 1 1 9 To Critical Strikes . | . . . . Average Slot Usage (%) 80 | . 95 76 69 Engine 10 | . 13 11 5 Treads 17 | . 28 15 4 Device 10 | . 9 4 25 Storage 11 | . 14 12 7 Processor 3 | . . 7 . Energy Gun 1 | . 4 . 2 Ballistic Gun 21 | . 23 24 14 Peak Build Rating 30 | 6 13 20 30 Average Rating 15 | 4 10 15 25 On Entrance 9 | . 6 12 20 Naked Turns . | . . . . Heaviest Build 34 | 13 17 19 34 Greatest Support 40 | 40 40 40 20 Greatest Overweight (x) 11 | . . . 11 Average Overweight (x) . | . . . 1 Largest Inventory Capacity 10 | 8 8 8 10 Average Capacity 8 | 6 8 8 9 Most Carried 10 | 3 8 8 10 Average Carried 6 | . 5 7 7 Final Capacity 10 | 8 8 8 10 Final Carried 8 | . 7 7 8 Class Distribution -------------------- 81% | Mutant 8% | Scavenger-Skirmisher 7% | Skirmisher Dominant Class ---------------- Mutant | -10/Materials Mutant | -10/Subcaves Scavenger-Skirmisher | -8/Materials Resources | -11 -10 -10 -8 ----------- Run | Yrd Mat Sub Mat Matter Collected 1125 | 216 253 347 309 Remotely . | . . . . Salvage Created 1492 | . 484 484 524 Parts 83 | . 23 37 23 Haulers Intercepted . | . . . . Recyclers Shooed . | . . . . Parts Field Recycled . | . . . . Retrieved Matter . | . . . . Parts Self-Destructed 20 | . . 20 . Prevented . | . . . . Kills | -11 -10 -10 -8 ------- Run | Yrd Mat Sub Mat Combat Hostiles Destroyed 35 | . 10 16 9 Guns 31 | . 10 16 5 Cannons 4 | . . . 4 Classes Destroyed 6 | . 2 3 1 Operator 1 | . . . 1 Watcher 3 | . 2 . 1 Swarmer 7 | . . 7 . Grunt 17 | . 10 . 7 Sentry 4 | . . 2 2 Subdweller 7 | . . 7 . Best Kill Streak 6 | . 2 6 3 Combat Bots Only 6 | . 2 6 3 Max Kills in Single Turn 2 | . 1 2 1 Gunslinging . | . . . . Exploded . | . . . . Melee . | . . . . Uniques/NPCs Destroyed . | . . . . Combat | -11 -10 -10 -8 -------- Run | Yrd Mat Sub Mat Hostile Shots Fired 267 | . 20 84 163 Missed 86 | . 9 36 41 Damage Taken 2907 | . 229 660 2018 Core 789 | . 38 196 555 Absorbed by Shields . | . . . . Core Remaining (%) 53 | 100 . 6 . Volleys Fired 121 | . 28 50 43 Largest 3 | . 2 2 3 Hottest 143 | . 60 46 143 Shots Fired 250 | . 56 99 95 Gun 226 | . 56 99 71 Cannon 24 | . . . 24 Launcher . | . . . . Special . | . . . . Kinetic 200 | . 43 99 58 Thermal 37 | . . . 37 Explosive . | . . . . Electromagnetic 13 | . 13 . . Robot Hit Streak 12 | . 12 8 11 Robot Miss Streak 4 | . 2 3 4 Penetration Max . | . . . . Secondary Targets 3 | . 1 2 . Max Gunslinging Chain 1 | . 1 1 . Shots Hit Robots 166 | . 38 62 66 Core Hits 70 | . 19 25 26 Critical Kills . | . . . . Critical Parts Destroyed 1 | . . . 1 Critical Strikes 2 | . . . 2 Burn 1 | . . . 1 Destroy 1 | . . . 1 Melee Attacks . | . . . . Impact . | . . . . Slashing . | . . . . Piercing . | . . . . Sneak Attacks . | . . . . Combat Hostiles . | . . . . Follow-up Attacks . | . . . . Damage Inflicted 2659 | . 563 929 1167 Guns 2241 | . 563 929 749 Cannons 418 | . . . 418 Explosions . | . . . . Melee . | . . . . Ramming . | . . . . Kinetic 1907 | . 419 929 559 Thermal 608 | . . . 608 Explosive . | . . . . Electromagnetic 144 | . 144 . . Impact . | . . . . Slashing . | . . . . Piercing . | . . . . Highest Corruption 2 | . . . 2 Average Corruption 2 | . . . 2 Corruption Purged . | . . . . Corruption Blocked . | . . . . Effects 4 | . . . 4 Message Errors 1 | . . . 1 Matter Fused 2 | . . . 2 Heat Flow Errors 1 | . . . 1 Overload Shots . | . . . . Overflow Damage . | . . . . Projectiles . | . . . . Explosions . | . . . . Melee . | . . . . Knockbacks . | . . . . Impact . | . . . . Kinetic . | . . . . Secondary . | . . . . Self-Inflicted Damage . | . . . . Shots . | . . . . Rammed . | . . . . Targets Rammed . | . . . . Kicked . | . . . . Crushed . | . . . . Highest Temperature 351 | . 46 2 351 Average Temperature 60 | . 17 2 75 Received Heat Transfer 927 | . 75 132 720 Effects 1 | . . . 1 Shutdowns 1 | . . . 1 Siege Activations . | . . . . Robots Corrupted . | . . . . Combat Hostiles . | . . . . Parts Fried . | . . . . Impact Corruptions . | . . . . Robots Melted . | . . . . Combat Hostiles . | . . . . Parts Melted 1 | . . . 1 Heat Transferred 1147 | . . . 1147 Parts Sabotaged . | . . . . Parts Stolen . | . . . . Parts Stripped . | . . . . Power Chain Reactions . | . . . . Alert | -11 -10 -10 -8 ------- Run | Yrd Mat Sub Mat Peak Influence 176 | . 145 . 176 Initial 37 | . . . 37 Average 45 | . 39 . 56 Maximum Alert Level . | . . . . Low Security (%) 100 | 100 100 . 100 Level 1 . | . . . . Level 2 . | . . . . Level 3 . | . . . . Level 4 . | . . . . Level 5 . | . . . . High Security . | . . . . Max Security . | . . . . Squads Dispatched 6 | . 3 . 3 Investigation 1 | . 1 . . Extermination . | . . . . Reinforcement 5 | . 2 . 3 Assault . | . . . . Garrison . | . . . . Intercept . | . . . . Searches Triggered . | . . . . Construction Impeded . | . . . . Haulers Reinforced . | . . . . Active Scanning Responses . | . . . . Cargo Convoy Interrupts . | . . . . Stealth | -11 -10 -10 -8 --------- Run | Yrd Mat Sub Mat Distress Signals 3 | . 1 . 2 Communications Jammed . | . . . . Distress Signals . | . . . . Times Spotted 55 | . 15 19 21 Peak Tracking Total 6 | . 5 6 4 Tactical Retreats 5 | . 1 1 3 Traps | -11 -10 -10 -8 ------- Run | Yrd Mat Sub Mat Traps Triggered 4 | . 3 . 1 Indirectly . | . . . . Trap Hack Attempts . | . . . . Triggered . | . . . . Disarmed 4 | . . . 4 Reprogrammed . | . . . . Reused . | . . . . Traps Extracted . | . . . . Installed . | . . . . Triggered . | . . . . Machines | -11 -10 -10 -8 ---------- Run | Yrd Mat Sub Mat Machines Disabled 1 | . 1 . . Max in Single Turn 1 | . 1 . . Machines Repaired . | . . . . Machines Dismantled . | . . . . Machines Sabotaged . | . . . . Overloaded Fab Kills . | . . . . Hacking | -11 -10 -10 -8 --------- Run | Yrd Mat Sub Mat Machines Accessed 8 | . 4 1 3 Terminals 7 | . 4 . 3 Fabricators . | . . . . Repair Stations . | . . . . Recycling Units . | . . . . Scanalyzers . | . . . . Garrison Access . | . . . . Total Hacks 25 | . 10 4 11 Successful 14 | . 4 4 6 Failed 11 | . 6 . 5 Catastrophic . | . . . . Database Lockouts . | . . . . Manual . | . . . . Terminals 21 | . 10 . 11 Fabricators . | . . . . Repair Stations . | . . . . Recycling Units . | . . . . Scanalyzers . | . . . . Garrison Access . | . . . . Terminal Hacks 14 | . 4 4 6 Record 4 | . . 4 . Alert Level 1 | . 1 . . Locate Traps 2 | . . . 2 Disarm Traps 1 | . . . 1 Investigation Status 1 | . 1 . . Reinforcement Status 1 | . . . 1 Hauler Manifests 2 | . 1 . 1 Zone Layout 2 | . 1 . 1 Fabricator Hacks . | . . . . Repair Station Hacks . | . . . . Recycling Unit Hacks . | . . . . Scanalyzer . | . . . . Garrison Access Hacks . | . . . . Unauthorized Hacks . | . . . . Terminals . | . . . . Fabricators . | . . . . Repair Stations . | . . . . Recycling Units . | . . . . Scanalyzers . | . . . . Garrison Access . | . . . . Data Cores Recovered 1 | . . . 1 Used . | . . . . Hacking Detections 4 | . 2 . 2 Full Trace Events 1 | . 1 . . Feedback Events . | . . . . Feedback Blocked . | . . . . Robot Schematics Acquired . | . . . . Robots Built . | . . . . Authchips . | . . . . Time . | . . . . Total Robot Build Rating . | . . . . Part Schematics Acquired . | . . . . Parts Built . | . . . . Authchips . | . . . . Time . | . . . . Total Part Build Rating . | . . . . Parts Repaired . | . . . . Time . | . . . . Parts Recycled . | . . . . Recycled Matter . | . . . . Retrieved Matter . | . . . . Retrieved Components . | . . . . Parts Scanalyzed . | . . . . Part Schematics Acquired . | . . . . Parts Damaged . | . . . . Bothacking | -11 -10 -10 -8 ------------ Run | Yrd Mat Sub Mat Used RIF Installer . | . . . . Robots Hacked . | . . . . Non-combat . | . . . . Combat . | . . . . Robot Hacks Applied . | . . . . Relay Couplers Released . | . . . . Fabnet Peak Effective % . | . . . . Robots Rewired . | . . . . Allies Hacked . | . . . . Hacks Repelled . | . . . . Allies | -11 -10 -10 -8 -------- Run | Yrd Mat Sub Mat Total Allies . | . . . . Largest Group . | . . . . Highest-Rated Group . | . . . . Highest-Rated Ally . | . . . . Total Orders . | . . . . Ally Attacks . | . . . . Total Damage . | . . . . Kills . | . . . . Allies Corrupted . | . . . . Allies Melted . | . . . . Intel | -11 -10 -10 -8 ------- Run | Yrd Mat Sub Mat Robot Analysis Total . | . . . . Derelict Logs Recovered . | . . . . Drone Launches . | . . . . Drone Recoveries . | . . . . Exploration | -11 -10 -10 -8 ------------- Run | Yrd Mat Sub Mat Turns Passed 5426 | 69 1726 2478 1153 Spaces Moved 2820 | 43 962 1443 372 Core 23 | 10 . . 13 Treads 2719 | 33 962 1443 281 Legs 57 | . . . 57 Wheels . | . . . . Hover 21 | . . . 21 Flight . | . . . . Fastest Speed 50 | 50 160 160 190 Average Speed 172 | 134 160 160 254 Slowest Speed 600 | 160 160 160 600 Overloaded Moves . | . . . . Propulsion Burnouts . | . . . . Robots Hopped . | . . . . Cave-ins Triggered . | . . . . Exploration Rate (%) 49 | 3 96 64 35 Regions Visited 3 Branch Regions 1 Pre-discovered Areas 1 | . . 1 . Known Exits Taken 2 | . 1 1 . Unknown Exits Taken 1 | 1 . . . Scrap Searched 1 | . . 1 . Spaces Dug . | . . . . Terrain Destroyed 2 | . . . 2 Melee . | . . . . Projectile 2 | . . . 2 AOE . | . . . . Terrain Rammed . | . . . . Walls Destroyed . | . . . . Machines Disabled . | . . . . Actions | -11 -10 -10 -8 --------- Run | Yrd Mat Sub Mat Total 3169 | 54 1094 1515 506 Wait 131 | . 72 4 55 Move 2817 | 42 961 1442 372 Hop . | . . . . Pick Up 44 | 6 16 6 16 Fast Attach 3 | . 1 1 1 Attach 23 | 6 2 1 14 Detach 1 | . . . 1 Swap 12 | . 6 4 2 Drop 17 | . 8 7 2 Fire 121 | . 28 50 43 Melee . | . . . . Ram . | . . . . Kick . | . . . . Crush . | . . . . Escape Stasis . | . . . . Rewire . | . . . . Trap . | . . . . Miscellaneous . | . . . . Route ------- -11/Scrapyard -10/Materials (discovered 5 exits: [*Mat x3] / [*Min] / *Sub) -10/Subcaves (discovered 3 exits: *Mat x2 / [*Rec]) -8/Materials History --------- Turn | Location | Event 6 | -11/Scrapyard | Discovered new exit (range 16) 70 | -11/Scrapyard | Entered Materials 318 | -10/Materials | Build established: Mutant 336 | -10/Materials | Discovered new exit (range 16) 770 | -10/Materials | Derelicts attacked the area 1011 | -10/Materials | Discovered new exit (range 16) 1118 | -10/Materials | Discovered new exit (range 12) 1417 | -10/Materials | Discovered new exit (range 13) 1710 | -10/Materials | Discovered new exit (range 7) 1719 | -10/Materials | Identified exit to Subcaves 1796 | -10/Materials | Entered Subcaves 1816 | -10/Subcaves | A swath of the cavern ceiling suddenly collapsed 2006 | -10/Subcaves | A Subdweller sparked back to life 2006 | -10/Subcaves | A Subdweller sparked back to life 2006 | -10/Subcaves | A Subdweller sparked back to life 2095 | -10/Subcaves | Shifting Twisted Machinery released Mak. Thermal Plating 2096 | -10/Subcaves | Shifting Twisted Machinery released Sub. Power Source 2264 | -10/Subcaves | Shifting Twisted Machinery released Hvy. Riot Gun 2373 | -10/Subcaves | Discovered new exit (range 13) 2389 | -10/Subcaves | Identified exit to Materials 2442 | -10/Subcaves | Core integrity fell below 50% 3117 | -10/Subcaves | Found Prototype Device 3118 | -10/Subcaves | Identified Power Bank 3119 | -10/Subcaves | Attached Power Bank, gained temporary slots: Power x3 3342 | -10/Subcaves | Shifting Twisted Machinery released Sub. Monowheel 3493 | -10/Subcaves | Visited Clippyterm 3497 | -10/Subcaves | Learned Factory stockpile data 3535 | -10/Subcaves | Learned location of Zion (-7) 3535 | -10/Subcaves | Met a Zionite searching for "candidates" 3664 | -10/Subcaves | A swath of the cavern ceiling suddenly collapsed 3718 | -10/Subcaves | Discovered exit to Materials (range 11) 3835 | -10/Subcaves | Discovered new exit (range 15) 3999 | -10/Subcaves | Core integrity fell below 20% 4274 | -10/Subcaves | Entered Materials 4274 | -8/Materials | Evolved 4 slots: Utility x3, Weapon x1 4585 | -8/Materials | Build established: Skirmisher 4925 | -8/Materials | Build established: Scavenger-Skirmisher 5240 | -8/Materials | Lost 6 parts (1p2n1u2w) 5393 | -8/Materials | Core integrity fell below 50% 5422 | -8/Materials | Core integrity fell below 20% 5427 | -8/Materials | Destroyed by X-57 Shotgunner with High-powered Shotgun Last Messages --------------- U-05 Engineer destroyed. Sub. Optics destroyed. Shock Bomb Launcher destroyed. Pulse Rifle destroyed. K-01 Serf collects debris. The unstable cave ceiling collapses. Field Laser destroyed. Lgt. Nuclear Core destroyed. System corrupted: Matter fused (-5). K-01 Serf collects debris. Critical hit (Burn: +37). K-01 Serf collects debris. M-13 Machinist repairs G-47 Trooper. Acquired Shock Rifle. M-13 Machinist fits Backup Propulsion I on G-47 Trooper. Acquired Shock Rifle. M-13 Machinist repairs Aluminum Leg. Critical hit (Burn: +37). K-01 Serf collects debris. Map ----- +----------------------------------------------------+ | # ###### """ # "T" ##?????????????????? | | # / ###### # %! ##?????????????????? | | #######+## ##+#########+#####?????????????????? | | ##### ###?????????????????? | | #####% #######?????????????? | | #######/## ##+##########+########?????????????? | | # !! ###### ### "" ##?????????????? | | # %% !###### ????## """ ""S ##?????????????? | | # ###????????## """ "" ##?????????????? | | # !!! ###????????## """ ##?????????????? | | # !! ##????????### ###????????????? | | # !! / ##????????#######+#####+##########? ????? | | # ##????????## # ####### ????? | | # ##????????## "" # T % ^% !!! ???? | | # ##????????## "T % ^ =%%! ???? | | ###########????????## !!! ???? | | ###########????????## % =% ####### ??????? | | ???????????????????## k= #########??????? | | ???????????????????## m =%! ###????????????? | | ???????????????????## g ##?????????????? | | ???????????????????## a##?????????????? | | ???????????????????##### ##?????????????? | | ???????????????????#### ####### ???????? | | ??????????????????????## x ####### ???????? | | ??????????????????????## !!x # #! # ???????? | | ??????????????????????## @!! *# # " # ???????? | | ??????????????????????## !!! # # "G" # ???????? | | ???????????????????????# + + " " ##???????? | | ?????????????########??# ] # # ##???????? | | ?????????????########??######## + ##???????? | | ?????????????## ##????????## # ! ##???????? | | ?????????????## ############ ########???????? | | ?????????????## ! ############ ########???????? | | ?????????????## ##! #### ##?????????????? | | ?????????????## ## """ #### ##?????????????? | | ?????????????##"" =## """ #### ##?????????????? | | ?????????????##"T ## """ #### ##?????????????? | | ?????????????##"" ## #### ########???????? | | ?????########## ## #### ########???????? | | ?????############+######+###### # ##???????? | | ?????## ##???????? | | ?????## ##???????? | | ?????## ##???????? | | ?????###### #########+########## ##???????? | | ?????###### ####### ######## ## ##???????? | | ?????????## ##???## """ ####?### ## ##???????? | | ?????????## ##???## "R" + ?? ## ##???????? | | ########### ##???## " " ####??##### # ???????? | | ########### ##???## ##????#####??????????? | | ## # ####### ##???????????????????? | +----------------------------------------------------+ Best States ------------- Heat Dissipation 31 Energy Generation 15 Energy Capacity 250 Matter Stores 300 Matter Capacity 300 Sight Range 21 Robot Scan Range 15 Terrain Scan Density 10 Evasion (%) 50 Recoil Reduction 2 Item Schematics ----------------- None Robot Schematics ------------------ None Fabricated ------------ Nothing Alien Tech Used ----------------- None Achievements -------------- None Challenges ------------ None Game ------ Seed TowerZioniteKit Manual? 0 Play Time 00:34:51 Cumulative 14.0 hours Start 2025.03.18 @ 18:41:28 End 2025.03.18 @ 19:14:54 Sessions 1 Manual Loads 0 Difficulty Rogue Special Mode None Game No. 27 Rogue 27 Adventurer 0 Explorer 0 Win Type - Total 0 Types 0/0/0/0/0/0/0/0/0 Lore% 9 Gallery% 16 Achievement% 14 Wizard Run 0 Options --------- Layout 1 ASCII 0 Keyboard 0 Movement Mouse Keybinds 0 Fullscreen 2 Font 24/Smallcaps Map View 50x35 Zoom Use 0% Tactical HUD 0 Map Filters NONE Filters NONE Steam 1 RUN: 7a1127e6-6de7-4fb0-914b-c176dc67857a